Cogmind - Beta 10.2 @@@ ROGUE MODE // 2020.11.06 @ 09:25:42 // Halloween2020/ForbiddenLore Player: dark Result: Self-destructed Performance ------------- Evolutions (1) 500 Regions Visited (3) 600 Robots Destroyed (4) 20 Value Destroyed (80) 80 Prototype IDs (1) 20 Alien Tech Used (0) 0 Bonus (0) 0 TOTAL SCORE: 1220 Bonus ------- None Cogmind --------- Core Integrity 245/400 Matter 145/300 Energy 2/100 System Corruption 0% Temperature Cool (0) Movement Flying (120) Ox1 Location -9/Materials Parts ------- > --- POWER (1) -------- (None) > --- PROPULSION (3) --- Flight Unit > --- UTILITY (3) ------ Small Storage Unit Advanced Sensor Array Improved Signal Interpreter > --- WEAPON (2) ------- (None) > --- INVENTORY (6) ---- Advanced Sensor Array Assault Rifle Rocket Launcher Plasma Flamer Peak State ------------ > --- POWER ------------ (None) > --- PROPULSION ------- Flight Unit Flight Unit Flight Unit > --- UTILITY ---------- Small Storage Unit Experimental Sensor Array Improved Signal Interpreter > --- WEAPON ----------- Rocket Launcher > --- INVENTORY -------- Flight Unit Advanced Sensor Array Advanced Sensor Array Assault Rifle Plasma Flamer [Rating: 15] Favorites ----------- Power Light Ion Engine Engine Light Ion Engine Propulsion Wheel Treads Light Treads Wheel Wheel Flight Unit Flight Unit Utility Small Storage Unit Device Sensor Array Storage Small Storage Unit Processor Improved Signal Interpreter Weapon Assault Rifle Energy Gun Small Laser Ballistic Gun Assault Rifle Launcher Rocket Launcher Build | -11 -10 -10 -9 ------- Run | Scr Mat Min Mat Slots Evolved 2 | . . . 2 Power . | . . . . Propulsion 1 | . . . 1 Utility 1 | . . . 1 Weapon . | . . . . Parts Attached 21 | 7 6 1 7 Power 1 | 1 . . . Engine 1 | 1 . . . Core . | . . . . Reactor . | . . . . Propulsion 7 | 3 2 . 2 Treads 1 | 1 . . . Leg . | . . . . Wheel 2 | 2 . . . Hover . | . . . . Flight 4 | . 2 . 2 Utility 7 | 1 2 1 3 Device 5 | . 2 1 2 Storage 1 | 1 . . . Processor 1 | . . . 1 Hackware . | . . . . Protection . | . . . . Artifact . | . . . . Weapon 6 | 2 2 . 2 Energy Gun 1 | 1 . . . Energy Cannon . | . . . . Ballistic Gun 3 | 1 2 . . Ballistic Cannon . | . . . . Launcher 2 | . . . 2 Special Weapon . | . . . . Impact Weapon . | . . . . Slashing Weapon . | . . . . Piercing Weapon . | . . . . Special Melee Weapon . | . . . . Unidentified Prototypes 1 | . . 1 . Parts Lost 6 | . 1 . 5 Power 1 | . . . 1 Propulsion 3 | . . . 3 Utility 1 | . . . 1 Weapon 1 | . 1 . . Highest Loss Streak 5 | . 1 . 5 Average Slot Usage (%) 78 | . 88 71 69 Engine 12 | . 14 14 7 Wheel 9 | . 18 . . Flight 19 | . 8 28 29 Device 12 | . 11 14 9 Storage 13 | . 14 14 11 Processor 2 | . . . 9 Energy Gun 3 | . 7 . . Ballistic Gun 5 | . 11 . . Naked Turns . | . . . . Heaviest Build 11 | 10 11 8 9 Greatest Support 20 | 20 20 8 12 Greatest Overweight (x) 2 | . 2 . 1 Average Overweight (x) . | . . . . Largest Inventory Capacity 6 | 6 6 6 6 Average Capacity 5 | 5 6 6 6 Most Carried 6 | 6 6 6 6 Average Carried 5 | 5 5 5 4 Final Capacity 6 | 6 6 6 6 Final Carried 6 | 5 6 6 4 Class Distribution -------------------- 100% | Mutant Dominant Class ---------------- Mutant | -10/Materials Mutant | -10/Mines Mutant | -9/Materials Resources | -11 -10 -10 -9 ----------- Run | Scr Mat Min Mat Matter Collected 286 | 206 70 10 . Remotely . | . . . . Salvage Created 144 | . 144 . . Parts 9 | . 9 . . Haulers Intercepted 1 | . 1 . . Recyclers Shooed . | . . . . Parts Field Recycled . | . . . . Retrieved Matter . | . . . . Parts Self-Destructed . | . . . . Prevented . | . . . . Kills | -11 -10 -10 -9 ------- Run | Scr Mat Min Mat Combat Hostiles Destroyed 3 | . 3 . . Guns 3 | . 3 . . Classes Destroyed 3 | . 3 . . Hauler 1 | . 1 . . Swarmer 1 | . 1 . . Grunt 2 | . 2 . . Best Kill Streak 3 | . 3 . . Combat Bots Only 2 | . 2 . . Max Kills in Single Turn 1 | . 1 . . Gunslinging . | . . . . Exploded . | . . . . Melee . | . . . . Uniques/NPCs Destroyed . | . . . . Combat | -11 -10 -10 -9 -------- Run | Scr Mat Min Mat Damage Taken 511 | 4 169 23 315 Core 226 | . 56 15 155 Absorbed by Shields . | . . . . Core Remaining (%) 85 | 100 . 71 . Volleys Fired 19 | . 18 . 1 Largest 2 | . 2 . 1 Hottest 60 | . 60 . 33 Shots Fired 25 | . 24 . 1 Gun 24 | . 24 . . Cannon . | . . . . Launcher 1 | . . . 1 Special . | . . . . Kinetic 18 | . 18 . . Thermal 6 | . 6 . . Explosive 1 | . . . 1 Electromagnetic . | . . . . Robot Hit Streak 7 | . 7 . . Robot Miss Streak 3 | . 3 . 1 Penetration Max . | . . . . Secondary Targets . | . . . . Shots Hit Robots 17 | . 17 . . Core Hits 7 | . 7 . . Critical Hits . | . . . . Critical Kills . | . . . . Critical Parts Destroyed . | . . . . Melee Attacks . | . . . . Impact . | . . . . Slashing . | . . . . Piercing . | . . . . Sneak Attacks . | . . . . Combat Hostiles . | . . . . Follow-up Attacks . | . . . . Damage Inflicted 205 | 9 196 . . Guns 196 | . 196 . . Cannons . | . . . . Explosions . | . . . . Melee . | . . . . Ramming 9 | 9 . . . Kinetic 131 | . 131 . . Thermal 65 | . 65 . . Explosive . | . . . . Electromagnetic . | . . . . Impact . | . . . . Slashing . | . . . . Piercing . | . . . . Highest Corruption . | . . . . Average Corruption . | . . . . Corruption Purged . | . . . . Overload Shots . | . . . . Overflow Damage . | . . . . Projectiles . | . . . . Explosions . | . . . . Melee . | . . . . Knockbacks . | . . . . Impact . | . . . . Kinetic . | . . . . Secondary . | . . . . Self-Inflicted Damage 37 | 4 . . 33 Shots 1 | . . . 1 Rammed 1 | 1 . . . Targets Rammed 1 | 1 . . . Kicked . | . . . . Crushed . | . . . . Highest Temperature 48 | . 48 . 10 Average Temperature 26 | . 28 . 6 Received Heat Transfer 207 | . 54 . 153 Siege Activations . | . . . . Robots Corrupted . | . . . . Combat Hostiles . | . . . . Parts Fried . | . . . . Impact Corruptions . | . . . . Robots Melted . | . . . . Combat Hostiles . | . . . . Parts Melted . | . . . . Heat Transferred 150 | . 150 . . Parts Sabotaged . | . . . . Parts Stolen . | . . . . Parts Stripped . | . . . . Power Chain Reactions . | . . . . Missiles Intercepted . | . . . . Alert | -11 -10 -10 -9 ------- Run | Scr Mat Min Mat Peak Influence 105 | . 72 27 105 Initial 27 | . . 27 10 Average 1 | . 21 27 54 Maximum Alert Level . | . . . . Low Security (%) 100 | 100 100 100 100 Level 1 . | . . . . Level 2 . | . . . . Level 3 . | . . . . Level 4 . | . . . . Level 5 . | . . . . High Security . | . . . . Max Security . | . . . . Squads Dispatched 6 | . . . 6 Investigation 2 | . . . 2 Extermination . | . . . . Reinforcement 4 | . . . 4 Assault . | . . . . Garrison . | . . . . Intercept . | . . . . Construction Impeded . | . . . . Haulers Reinforced . | . . . . Stealth | -11 -10 -10 -9 --------- Run | Scr Mat Min Mat Distress Signals 2 | . 1 . 1 Communications Jammed . | . . . . Distress Signals . | . . . . Times Spotted 25 | . 6 3 16 Peak Tracking Total 14 | . 2 3 14 Tactical Retreats 1 | . . . 1 Traps | -11 -10 -10 -9 ------- Run | Scr Mat Min Mat Traps Triggered 1 | . . . 1 Indirectly . | . . . . Trap Hack Attempts . | . . . . Triggered . | . . . . Disarmed . | . . . . Reprogrammed . | . . . . Reused . | . . . . Traps Extracted . | . . . . Installed . | . . . . Triggered . | . . . . Machines | -11 -10 -10 -9 ---------- Run | Scr Mat Min Mat Machines Disabled . | . . . . Max in Single Turn . | . . . . Machines Sabotaged . | . . . . Garrisons Compromised . | . . . . Overloaded Fab Kills . | . . . . Fab Network Shutdowns . | . . . . Hacking | -11 -10 -10 -9 --------- Run | Scr Mat Min Mat Machines Accessed 3 | . 2 . 1 Terminals 3 | . 2 . 1 Fabricators . | . . . . Repair Stations . | . . . . Recycling Units . | . . . . Scanalyzers . | . . . . Garrison Access . | . . . . Total Hacks 12 | . 7 . 5 Successful 5 | . 3 . 2 Failed 7 | . 4 . 3 Catastrophic . | . . . . Database Lockouts . | . . . . Manual 11 | . 6 . 5 Terminals 12 | . 7 . 5 Fabricators . | . . . . Repair Stations . | . . . . Recycling Units . | . . . . Scanalyzers . | . . . . Garrison Access . | . . . . Terminal Hacks 2 | . 1 . 1 Terminal Index 1 | . . . 1 Locate Traps 1 | . 1 . . Fabricator Hacks . | . . . . Repair Station Hacks . | . . . . Recycling Unit Hacks . | . . . . Scanalyzer . | . . . . Garrison Access Hacks . | . . . . Unauthorized Hacks 3 | . 2 . 1 Terminals 3 | . 2 . 1 Assimilate 1 | . 1 . . Botnet 2 | . 1 . 1 Fabricators . | . . . . Repair Stations . | . . . . Recycling Units . | . . . . Scanalyzers . | . . . . Garrison Access . | . . . . Data Cores Recovered . | . . . . Used . | . . . . Hacking Detections 3 | . 2 . 1 Full Trace Events 1 | . . . 1 Feedback Events . | . . . . Feedback Blocked . | . . . . Robot Schematics Acquired . | . . . . Robots Built . | . . . . Matter . | . . . . Time . | . . . . Total Robot Build Rating . | . . . . Part Schematics Acquired . | . . . . Parts Built . | . . . . Matter . | . . . . Time . | . . . . Total Part Build Rating . | . . . . Parts Repaired . | . . . . Time . | . . . . Parts Recycled . | . . . . Recycled Matter . | . . . . Retrieved Matter . | . . . . Retrieved Components . | . . . . Parts Scanalyzed . | . . . . Part Schematics Acquired . | . . . . Parts Damaged . | . . . . Bothacking | -11 -10 -10 -9 ------------ Run | Scr Mat Min Mat Used RIF Installer . | . . . . Robots Hacked . | . . . . Non-combat . | . . . . Combat . | . . . . Robot Hacks Applied . | . . . . Relay Couplers Released . | . . . . Robots Rewired . | . . . . Allies Hacked . | . . . . Hacks Repelled . | . . . . Allies | -11 -10 -10 -9 -------- Run | Scr Mat Min Mat Total Allies 1 | . 1 . . Largest Group 1 | . 1 . . Highest-Rated Group 10 | . 10 . . Highest-Rated Ally 10 | . 10 . . Total Orders . | . . . . Ally Attacks . | . . . . Total Damage . | . . . . Kills . | . . . . Allies Corrupted . | . . . . Allies Melted . | . . . . Intel | -11 -10 -10 -9 ------- Run | Scr Mat Min Mat Robot Analysis Total . | . . . . Derelict Logs Recovered 2 | . . 2 . Drone Launches . | . . . . Drone Recoveries . | . . . . Exploration | -11 -10 -10 -9 ------------- Run | Scr Mat Min Mat Turns Passed 7209 | 6796 198 122 93 Spaces Moved 1608 | 996 110 317 185 Core 9 | 9 . . . Treads 4 | 4 . . . Legs . | . . . . Wheels 1042 | 983 59 . . Hover . | . . . . Flight 553 | . 51 317 185 Fastest Speed 34 | 50 37 37 34 Average Speed 65 | 80 67 37 39 Slowest Speed 200 | 160 200 37 120 Overloaded Moves . | . . . . Propulsion Burnouts . | . . . . Robots Hopped 9 | . 3 . 6 Cave-ins Triggered . | . . . . Exploration Rate (%) 58 | 111 26 72 23 Regions Visited 3 Branch Regions 1 Pre-discovered Areas 2 | . . 2 . Known Exits Taken . | . . . . Unknown Exits Taken 3 | 1 1 1 . Scrap Searched 1 | . . 1 . Spaces Dug . | . . . . Terrain Destroyed 12 | . . . 12 Melee . | . . . . Projectile . | . . . . AOE 12 | . . . 12 Terrain Rammed . | . . . . Walls Destroyed . | . . . . Machines Disabled . | . . . . Actions | -11 -10 -10 -9 --------- Run | Scr Mat Min Mat Total 7726 | 6996 209 322 199 Wait 6045 | 5979 61 . 5 Move 1588 | 995 103 316 174 Hop 8 | . 3 . 5 Pick Up 24 | 12 7 1 4 Fast Attach 5 | . 4 1 . Attach 16 | 7 2 . 7 Detach 5 | 1 1 1 2 Swap . | . . . . Drop 15 | 1 10 3 1 Fire 19 | . 18 . 1 Melee . | . . . . Ram 1 | 1 . . . Kick . | . . . . Crush . | . . . . Escape Stasis . | . . . . Rewire . | . . . . Trap . | . . . . Miscellaneous . | . . . . Route ------- -11/Scrapyard -10/Materials (discovered 2 exits: [*Min x2]) -10/Mines -9/Materials History --------- Turn | Location | Event 9 | -11/Scrapyard | Discovered new exit (range 15) 6797 | -11/Scrapyard | Entered Materials 6797 | -10/Materials | Discovered new exit (range 16) 6798 | -10/Materials | Build established: Mutant 6962 | -10/Materials | Discovered new exit (range 14) 6995 | -10/Materials | Entered Mines 7001 | -10/Mines | Learned location of Storage (-8) 7004 | -10/Mines | A weapon hastily lodged in a ceiling crevice suddenly fell to the ground 7015 | -10/Mines | Found a damaged Exp. Sensor Array with a note attached 7016 | -10/Mines | Found Prototype Device 7016 | -10/Mines | Identified Exp. Sensor Array 7111 | -10/Mines | Discovered new exit (range 14) 7115 | -10/Mines | Learned location of Zion (-6) 7117 | -10/Mines | Entered Materials 7117 | -9/Materials | Evolved 2 slots: Propulsion x1, Utility x1 7210 | -9/Materials | Self-destructed Last Messages --------------- O-16 Technician: "IFF HANDSHAKE FAILED. SECURING TERMINAL." O-16 Technician uses terminal to summon reinforcements. ALERT: Hostiles spotted, dispatching reinforcements to Terminal M011. O-16 Technician locks terminal. O-16 Technician: "IFF HANDSHAKE FAILED. SECURING TERMINAL." O-16 Technician uses terminal to summon reinforcements. ALERT: Hostiles spotted, dispatching reinforcements to Terminal M002. O-16 Technician locks terminal. W-16 Scout sends out distress signal. Triggered Alarm Trap. An alarm sounds. ALERT: Alarm triggered, dispatching investigation squad. ALERT: Hostiles spotted, dispatching reinforcements to Terminal M007. Lgt. Ion Engine destroyed. Acquired Adv. Sensor Array. Exp. Sensor Array destroyed. Flight Unit destroyed. U-05 Engineer lays Concrete. Flight Unit destroyed. U-05 Engineer lays Concrete. Map ----- +----------------------------------------------------+ | ????????????????????# ### "" #? ???????????? | | ????????????????????# + #?? ??????????? | | ????????????????????######/#######???? ?????????? | | ?????????????????????????# #??????????"""????????? | | ?????????????????????????# #?????????????????????? | | ?????????????????????????# #?????????????????????? | | ?????????????????????????# #?????????????????????? | | ?????????????????????????# #?????????????????????? | | ?????????????????????????# #?????????????????????? | | ?????????????????????????# #?????????????????????? | | ?????????????????????????# #?????????????????????? | | ?????????????????????????# #?????????????????????? | | ?????????????????????????# #?????????????????????? | | ?????????????????????????# #?????????????????????? | | ?????????????????????????# #?????????????????????? | | ?????????????????????????# #?????????????????????? | | ?????????????????????????# #?????????????????????? | | ?????????????????????????# #?????????????????????? | | ?????????????????????????# #?????????????????????? | | ?????????????????????##### #????#???? #??????????? | | ?????????????????##### ##u#### ### #??????????? | | ?????????????????#!! g #??????????? | | ?????????????????# gggg #??????????? | | ?????????????????#!! gg ^ +??????????? | | ?????????????????#!! # #g #??????????? | | ?????????????????#!! ####@ #??????????? | | ?????????????????#!! #??# #??????????? | | ?????????????????#####??# #### #??????????? | | ???????????????????????? #???? +??????????? | | ????????????????????????##+###+#????? #??????????? | | ?????????????????????????????????????????????????? | | ?????????????????????????????????????????????????? | | ?????????????????????????????????????????????????? | | ?????????????????????????????????????????????????? | | ?????????????????????????????????????????????????? | | ?????????????????????????????????????????????????? | | ?????????????????????????????????????????????????? | | ?????????????????????????????????????????????????? | | ?????????????????????????????????????????????????? | | ?????????????????????????????????????????????????? | | ?????????????????????????????????????????????????? | | ?????????????????????????????????????????????????? | | ?????????????????????????????????????????????????? | | ?????????????????????????????????????????????????? | | ?????????????????????????????????????????????????? | | ?????????????????????????????????????????????????? | | | | | | | | | +----------------------------------------------------+ Best States ------------- Heat Dissipation 28 Energy Generation 10 Energy Capacity 125 Matter Stores 278 Matter Capacity 300 Sight Range 16 Robot Scan Range 30 Terrain Scan Density 10 Evasion (%) 62 Recoil Reduction 1 Item Schematics ----------------- None Robot Schematics ------------------ None Fabricated ------------ Nothing Alien Tech Used ----------------- None Achievements -------------- None Challenges ------------ None Game ------ Seed FocalAbsorptionRefractor Manual? 0 Play Time 00:15:51 Cumulative 76.4 hours Start 2020.11.06 @ 09:12:44 End 2020.11.06 @ 09:25:42 Sessions 1 Manual Loads 0 Difficulty Rogue Special Mode Halloween2020/ForbiddenLore Game No. 114 Rogue 80 Adventurer 11 Explorer 23 Win Type - Total 0 Types 0/0/0/0/0/0/0/0/0 Lore% 37 Gallery% 60 Achievement% 34 Wizard Run 0 Options --------- ASCII 0 Keyboard 0 Movement Arrows Keybinds 0 Fullscreen 2 Font 14/SmallcapsGlow Map View 84x54 Tactical HUD 0 Map Filters NONE Filters NONE Steam 1 RUN: fea09f2b-1c95-43bf-95fa-a9cc4b234e7e